Cogmind - Beta 15 @@@ ROGUE MODE // 2025.10.01 @ 08:43:38 Player: Kotyk77 Result: Destroyed by as-86957 with Assembled Rifle Performance ------------- Evolutions (0) 0 Regions Visited (2) 400 Robots Destroyed (32) 160 Value Destroyed (734) 734 Prototype IDs (4) 80 Alien Tech Used (0) 0 Bonus (-16) -16 TOTAL SCORE: 1358 Bonus ------- Friendly Fire -16 Cogmind --------- Core Integrity 0/250 Matter 255/300 Energy 96/100 System Corruption 3% Temperature Cool (0) Movement Rolling (140) Ox4 Location -10/Mines Parts ------- > --- POWER (1) -------- (None) > --- PROPULSION (2) --- Wheel > --- UTILITY (2) ------ High-capacity Storage Unit Signal Interpreter > --- WEAPON (2) ------- Mining Claw > --- INVENTORY (20) --- Ion Engine Light Ion Engine Light Ion Engine Light Nuclear Core Aluminum Leg Aluminum Leg Wheel Wheel Wheel Improved Heat Sink High-capacity Matter Pod (200) Sensor Array Seismic Detector Targeting Computer Weapon Shielding Weapon Shielding Mining Laser Peak State ------------ > --- POWER ------------ Ion Engine > --- PROPULSION ------- Wheel Wheel > --- UTILITY ---------- High-capacity Storage Unit Seismic Detector > --- WEAPON ----------- Small Laser Grenade Launcher > --- INVENTORY -------- Light Ion Engine Light Ion Engine Light Nuclear Core Aluminum Leg Aluminum Leg Wheel Wheel Wheel Wheel Wheel Improved Heat Sink Targeting Computer EM Pulse Gun Small Laser Mining Laser Mining Laser [Rating: 9] Favorites ----------- Power Ion Engine Engine Ion Engine Propulsion Wheel Leg Aluminum Leg Wheel Wheel Utility High-capacity Storage Unit Device Seismic Detector Storage High-capacity Storage Unit Processor Signal Interpreter Weapon Grenade Launcher Energy Gun Small Laser Launcher Grenade Launcher Special Weapon Mining Laser Slashing Weapon Mining Claw Build | -11 -10 -10 ------- Run | Yrd Mat Min Slots Evolved . | . . . Power . | . . . Propulsion . | . . . Utility . | . . . Weapon . | . . . Parts Attached 20 | 7 11 2 Power 2 | 1 1 . Engine 2 | 1 1 . Core . | . . . Reactor . | . . . Propulsion 8 | 2 5 1 Treads . | . . . Leg 2 | 2 . . Wheel 6 | . 5 1 Hover . | . . . Flight . | . . . Utility 4 | 2 2 . Device 1 | 1 . . Storage 2 | 1 1 . Processor 1 | . 1 . Hackware . | . . . Protection . | . . . Artifact . | . . . Weapon 6 | 2 3 1 Energy Gun 2 | 2 . . Energy Cannon . | . . . Ballistic Gun . | . . . Ballistic Cannon . | . . . Launcher 2 | . 1 1 Special Weapon 1 | . 1 . Impact Weapon . | . . . Slashing Weapon 1 | . 1 . Piercing Weapon . | . . . Special Melee Weapon . | . . . Unidentified Prototypes . | . . . Parts Lost 6 | . . 6 Power 1 | . . 1 Propulsion 2 | . . 2 Utility . | . . . Weapon 3 | . . 3 Highest Loss Streak 6 | . . 6 To Critical Strikes . | . . . Average Backups 14 | 3 15 19 Power 2 | . 2 4 Propulsion 5 | 2 6 5 Utility 3 | . 4 7 Weapon 2 | . 2 2 Tool/Special . | . . . Unused Backups 15 | . 2 13 Power 4 | . . 4 Propulsion 3 | . . 3 Utility 6 | . . 6 Weapon 2 | . 2 . Tool/Special . | . . . Average Slot Usage (%) 99 | . 100 90 Engine 13 | . 14 12 Leg 2 | . 2 . Wheel 25 | . 25 24 Device 9 | . 10 . Storage 14 | . 14 14 Processor 4 | . 3 14 Energy Gun 8 | . 8 1 Launcher 12 | . 12 8 Slashing Weapon 6 | . 6 14 Peak Build Rating 9 | 7 9 9 Average Rating 8 | 5 8 8 On Entrance 5 | . 7 9 Naked Turns . | . . . Heaviest Build 51 | 14 51 50 Greatest Support 20 | 20 20 20 Greatest Overweight (x) 4 | 1 2 4 Average Overweight (x) 1 | . 1 2 Largest Inventory Capacity 20 | 8 20 20 Average Capacity 18 | 7 19 20 Most Carried 20 | 6 20 20 Average Carried 15 | 3 15 19 Final Capacity 20 | 8 20 20 Final Carried 20 | 6 20 17 Class Distribution -------------------- 100% | Mutant Dominant Class ---------------- Mutant | -10/Materials Mutant | -10/Mines Resources | -11 -10 -10 ----------- Run | Yrd Mat Min Matter Collected 817 | 270 532 15 Remotely . | . . . Salvage Created 870 | 28 792 50 Parts 49 | 6 40 3 Haulers Intercepted 2 | . 2 . Recyclers Shooed . | . . . Parts Field Recycled . | . . . Retrieved Matter . | . . . Parts Self-Destructed . | . . . Prevented . | . . . Kills | -11 -10 -10 ------- Run | Yrd Mat Min Combat Hostiles Destroyed 24 | . 15 9 Melee 6 | . 3 3 AOE 18 | . 12 6 Classes Destroyed 10 | 1 7 2 Worker 3 | . 3 . Builder 1 | . 1 . Tunneler 2 | 2 . . Hauler 2 | . 2 . Recycler 2 | . 2 . Operator 2 | . 2 . Watcher 2 | . 2 . Swarmer 3 | . . 3 Grunt 15 | . 15 . Assembled 6 | . . 6 Best Kill Streak 6 | 2 5 6 Combat Bots Only 6 | . 4 6 Max Kills in Single Turn 3 | 1 3 3 Gunslinging . | . . . Exploded 3 | . 2 3 Melee 1 | . 1 1 Uniques/NPCs Destroyed . | . . . Combat | -11 -10 -10 -------- Run | Yrd Mat Min Hostile Shots Fired 74 | . 30 44 Missed 25 | . 12 13 Hits 49 | . 18 31 Melee 3 | . . 3 Projectile 46 | . 18 28 Damage Taken 865 | . 334 531 Core 259 | . 111 148 Absorbed by Shields . | . . . Core Remaining (%) 100 | 100 . . Volleys Fired 42 | 3 31 8 Largest 2 | 2 2 1 Hottest 80 | 80 70 40 Shots Fired 56 | 4 44 8 Gun 27 | 4 21 2 Cannon . | . . . Launcher 29 | . 23 6 Special . | . . . Kinetic . | . . . Thermal 26 | 3 21 2 Explosive 29 | . 23 6 Electromagnetic 1 | 1 . . Robot Hit Streak 8 | 2 7 8 Robot Miss Streak 5 | 2 2 5 Penetration Max . | . . . Secondary Targets . | . . . Shots Hit Robots 43 | 2 36 5 Core Hits 59 | 2 40 17 Critical Kills . | . . . Critical Parts Destroyed . | . . . Critical Strikes . | . . . Melee Attacks 24 | . 19 5 Impact . | . . . Slashing 24 | . 19 5 Piercing . | . . . Sneak Attacks 8 | . 8 . Combat Hostiles 1 | . 1 . Follow-up Attacks . | . . . Damage Inflicted 2205 | 22 1676 507 Guns 112 | 22 90 . Cannons . | . . . Explosions 1423 | . 1030 393 Melee 649 | . 535 114 Ramming 21 | . 21 . Kinetic . | . . . Thermal 112 | 22 90 . Explosive 1423 | . 1030 393 Electromagnetic . | . . . Impact . | . . . Slashing 649 | . 535 114 Piercing . | . . . Highest Corruption 3 | . 3 3 Average Corruption 1 | . 1 3 Corruption Purged . | . . . Corruption Blocked . | . . . Effects 9 | . 9 . Message Errors 2 | . 2 . Matter Fused 2 | . 2 . Heat Flow Errors 1 | . 1 . Energy Discharges 1 | . 1 . Data Loss (minor) 2 | . 2 . Misfires 1 | . 1 . Overload Shots . | . . . Overflow Damage 86 | . 61 25 Projectiles . | . . . Explosions 39 | . 34 5 Melee 47 | . 27 20 Knockbacks . | . . . Impact . | . . . Kinetic . | . . . Secondary . | . . . Self-Inflicted Damage 227 | . 129 98 Shots 8 | . 5 3 Rammed 5 | . 5 . Targets Rammed 5 | . 5 . Kicked . | . . . Crushed . | . . . Highest Temperature 120 | 18 120 15 Average Temperature 18 | 12 19 5 Received Heat Transfer 234 | . 114 120 Siege Activations . | . . . Martial Activations . | . . . Shielding Activations . | . . . Robots Disrupted . | . . . Combat Hostiles . | . . . Robots Corrupted . | . . . Combat Hostiles . | . . . Parts Fried . | . . . Impact Corruptions . | . . . Robots Melted . | . . . Combat Hostiles . | . . . Parts Melted . | . . . Heat Transferred 250 | 50 200 . Parts Sabotaged . | . . . Parts Stolen . | . . . Parts Stripped . | . . . Power Chain Reactions . | . . . Alert | -11 -10 -10 ------- Run | Yrd Mat Min Maximum Alert Level 1 | . 1 . Low Security (%) 72 | 100 67 100 Level 1 27 | . 32 . Level 2 . | . . . Level 3 . | . . . Level 4 . | . . . Level 5 . | . . . High Security . | . . . Max Security . | . . . Peak Influence 305 | 5 305 184 Initial 107 | . . 107 Average 117 | 1 126 166 Influence Increases 806 | 10 691 105 Destroy 0b10 Robot/C 360 | . 300 60 Destroy 0b10 Robot/NC 70 | 10 60 . Destroy Leader 88 | . 78 10 Successful Hack 37 | . 37 . Disable Machine 60 | . 60 . Destroy Structure 176 | . 141 35 Lose Combat Pursuer 15 | . 15 . Influence Decreases 684 | 10 415 259 Entered New Map 169 | . . 169 Time Decay 455 | 10 415 30 Lost Part 60 | . . 60 Squads Dispatched 3 | . 3 . Investigation 1 | . 1 . Extermination . | . . . Reinforcement 2 | . 2 . Assault . | . . . Garrison . | . . . Intercept . | . . . Searches Triggered . | . . . Construction Impeded . | . . . Haulers Reinforced . | . . . Active Scanning Responses . | . . . Cargo Convoy Interrupts . | . . . Stealth | -11 -10 -10 --------- Run | Yrd Mat Min Distress Signals . | . . . Communications Jammed . | . . . Distress Signals . | . . . Times Spotted 37 | . 24 13 Peak Tracking Total 8 | . 2 8 Tactical Retreats 1 | . 1 . Traps | -11 -10 -10 ------- Run | Yrd Mat Min Traps Triggered 2 | . 2 . Indirectly . | . . . Trap Hack Attempts . | . . . Triggered . | . . . Disarmed . | . . . Reprogrammed . | . . . Reused . | . . . Traps Extracted . | . . . Installed . | . . . Triggered . | . . . Machines | -11 -10 -10 ---------- Run | Yrd Mat Min Machines Disabled 4 | . 4 . Max in Single Turn 1 | . 1 . Machines Repaired . | . . . Machines Dismantled . | . . . Machines Sabotaged . | . . . Overloaded Fab Kills . | . . . Hacking | -11 -10 -10 --------- Run | Yrd Mat Min Machines Accessed 5 | . 5 . Terminals 5 | . 5 . Fabricators . | . . . Repair Stations . | . . . Recycling Units . | . . . Scanalyzers . | . . . Garrison Access . | . . . Total Hacks 20 | . 20 . Successful 13 | . 13 . Failed 7 | . 7 . Catastrophic . | . . . Database Lockouts . | . . . Manual 15 | . 15 . Terminals 20 | . 20 . Fabricators . | . . . Repair Stations . | . . . Recycling Units . | . . . Scanalyzers . | . . . Garrison Access . | . . . Terminal Hacks 11 | . 11 . Record 2 | . 2 . Robot Analysis 4 | . 4 . Prototype ID Bank 2 | . 2 . Terminal Index 1 | . 1 . Recall Investigation 1 | . 1 . Hauler Manifests 1 | . 1 . Fabricator Hacks . | . . . Repair Station Hacks . | . . . Recycling Unit Hacks . | . . . Scanalyzer . | . . . Garrison Access Hacks . | . . . Unauthorized Hacks 2 | . 2 . Terminals 2 | . 2 . Botnet 2 | . 2 . Fabricators . | . . . Repair Stations . | . . . Recycling Units . | . . . Scanalyzers . | . . . Garrison Access . | . . . Data Cores Recovered . | . . . Used . | . . . Hacking Detections 5 | . 5 . Full Trace Events 1 | . 1 . Feedback Events . | . . . Feedback Blocked . | . . . Robot Schematics Acquired . | . . . Robots Built . | . . . Authchips . | . . . Time . | . . . Total Robot Build Rating . | . . . Part Schematics Acquired . | . . . Parts Built . | . . . Authchips . | . . . Time . | . . . Total Part Build Rating . | . . . Parts Repaired . | . . . Time . | . . . Parts Recycled . | . . . Recycled Matter . | . . . Retrieved Matter . | . . . Retrieved Components . | . . . Parts Scanalyzed . | . . . Part Schematics Acquired . | . . . Parts Damaged . | . . . Bothacking | -11 -10 -10 ------------ Run | Yrd Mat Min Used RIF Installer . | . . . Robots Hacked . | . . . Non-combat . | . . . Combat . | . . . Robot Hacks Applied . | . . . Relay Couplers Released . | . . . Fabnet Peak Effective % . | . . . Robots Rewired . | . . . Allies Hacked . | . . . Hacks Repelled . | . . . Allies | -11 -10 -10 -------- Run | Yrd Mat Min Total Allies . | . . . Largest Group . | . . . Highest-Rated Group . | . . . Highest-Rated Ally . | . . . Total Orders . | . . . Ally Attacks . | . . . Total Damage . | . . . Kills . | . . . Allies Corrupted . | . . . Allies Melted . | . . . Intel | -11 -10 -10 ------- Run | Yrd Mat Min Active Infowar (turns) 864 | 25 839 . Seismic 864 | 25 839 . Robot Analysis Total 4 | . 4 . Derelict Logs Recovered . | . . . Drone Launches . | . . . Drone Recoveries . | . . . Exploration | -11 -10 -10 ------------- Run | Yrd Mat Min Turns Passed 1343 | 113 1159 71 Spaces Moved 989 | 77 877 35 Core 10 | 10 . . Treads . | . . . Legs 123 | 67 56 . Wheels 856 | . 821 35 Hover . | . . . Flight . | . . . Fastest Speed 50 | 50 80 110 Average Speed 110 | 114 110 111 Slowest Speed 140 | 120 120 140 Overloaded Moves . | . . . Propulsion Burnouts . | . . . Robots Hopped . | . . . Potential Cave-ins . | . . . Cave-ins Triggered . | . . . Exploration Rate (%) 35 | 4 88 15 Regions Visited 2 Branch Regions 1 Pre-discovered Areas . | . . . Known Exits Taken 1 | . 1 . Unknown Exits Taken 1 | 1 . . Scrap Searched . | . . . Spaces Dug 1 | . 1 . Terrain Destroyed 203 | . 165 38 Melee 1 | . 1 . Projectile . | . . . AOE 202 | . 164 38 Terrain Rammed . | . . . Walls Destroyed . | . . . Machines Disabled . | . . . Actions | -11 -10 -10 --------- Run | Yrd Mat Min Total 1131 | 94 986 51 Wait 21 | 2 19 . Move 987 | 76 876 35 Hop . | . . . Pick Up 23 | 6 17 . Fast Attach 7 | 7 . . Attach 3 | . . 3 Detach . | . . . Swap 11 | . 11 . Drop 8 | . 8 . Fire 42 | 3 31 8 Melee 24 | . 19 5 Ram 5 | . 5 . Kick . | . . . Crush . | . . . Escape Stasis . | . . . Rewire . | . . . Trap . | . . . Miscellaneous . | . . . Route ------- -11/Scrapyard -10/Materials (discovered 4 exits: *Mat x3 / *Min) -10/Mines History --------- Turn | Location | Event 6 | -11/Scrapyard | Discovered new exit (range 15) 114 | -11/Scrapyard | Entered Materials 316 | -10/Materials | Build established: Mutant 473 | -10/Materials | Discovered new exit (range 6) 611 | -10/Materials | Discovered new exit (range 15) 885 | -10/Materials | Discovered new exit (range 8) 946 | -10/Materials | Discovered new exit (range 9) 955 | -10/Materials | Identified exit to Materials 1272 | -10/Materials | Identified exit to Mines 1273 | -10/Materials | Entered Mines 1289 | -10/Mines | Met a Derelict bent on vengeance 1292 | -10/Mines | Assembled infested the area 1297 | -10/Mines | Assisted by a Guerilla fighting off Assembled 1315 | -10/Mines | Core integrity fell below 50% 1332 | -10/Mines | Core integrity fell below 20% 1344 | -10/Mines | Destroyed by as-86957 with Assembled Rifle Last Messages --------------- 01306_ as-61848 suffers critical hit (Destroy). 01306_ as-61848 destroyed. 01306_ HV Slug penetrates Wall. 01307_ Grenade Launcher destroyed. 01307_ Destroyed Grenade Launcher. 01309_ Destroyed Asb. Hover Unit. 01309_ as-08124 destroyed. 01312_ HV Slug penetrates Wall. 01317_ NZ-P1S(h) destroyed. 01319_ as-30230 destroyed. 01320_ Wheel destroyed. 01325_ Grenade Launcher destroyed. 01325_ as-88263 destroyed. 01328_ as-47086 destroyed. 01331_ The unstable cave ceiling collapses. 01333_ Wheel destroyed. 01337_ Ion Engine destroyed. 01339_ The unstable cave ceiling collapses. 01339_ Acquired 5 matter. 01343_ Sml. Laser destroyed. Map ----- +----------------------------------------------------+ | ?????????????????????????????????????????????????? | | ?????????????????????????????????????????????????? | | ?????????????????????????????????????????????????? | | ?????????????????????????????????????????????????? | | ?????????????????????????????????????????????????? | | ?????????????????????????????????????????????????? | | ?????????????????????????????????????????????????? | | ??????????????????????????????? #???????????????? | | ????######????????????????????? ???????????????? | | ##### #???????????????????? ???????????????? | | %= #?????????????#####?# ???????????????? | | #????????????## ## #???????????????? | | """%= #????????????# % #????????????????? | | """= %#########?????# """ #?????????????????? | | """ ####?## """a###????????????????? | | #### ## ### a # ?????????????????? | | #??# ## " ##????????????????? | | #########??# ###### %! ####?????????????? | | ??????????? #????##### $ #???????????? | | ??????????? ##????????## #???????????? | | ???????????#???????????? #?### #???????????? | | ??????????????????????### # #??????????????????? | | ??????????????????????# a #??????????????????? | | ??????????????????????## ##??????????????????? | | ??????????????????????# a# ##???????????????????? | | ??????????????????????# %@ #?????????????????????? | | ??????????????????????# #?????????????????????? | | ??????????????????????# #?????????????????????? | | ??????????????????????# ##?????????????????????? | | ??????????????????????# #?????????????????????? | | ?????????????????????? #?????????????????????? | | ????????????????????? #?????????????????????? | | ???????????????????? ?????????????????????? | | ??????????????????? ????????????????????? | | ?????????????????? ????????????????????? | | ?????????????????? ## ##???????????????????? | | ????????????????? ?# ##????????????????????? | | ???????????????? ??# #?????????????????????? | | ????????????????#??? ?????????????????????? | | ???????????????????? ?????????????????????? | | ???????????????????? ?????????????????????? | | ???????????????????? ?????????????????????? | | ?????????????????????? ###??????????????????????? | | ?????????????????????????????????????????????????? | | ?????????????????????????????????????????????????? | | ?????????????????????????????????????????????????? | | ?????????????????????????????????????????????????? | | ?????????????????????????????????????????????????? | | ?????????????????????????????????????????????????? | | ?????????????????????????????????????????????????? | +----------------------------------------------------+ Best States ------------- Heat Dissipation 25 Energy Generation 10 Energy Capacity 250 Matter Stores 300 Matter Capacity 300 Sight Range 16 Terrain Scan Density 10 Evasion (%) 55 Item Schematics ----------------- None Robot Schematics ------------------ None Fabricated ------------ Nothing Repaired ---------- Nothing Alien Tech Used ----------------- None Achievements -------------- None Challenges ------------ None Game ------ Seed BarrageReflectiveModule Manual? 0 Play Time 00:15:40 Cumulative 74.2 hours Start 2025.10.01 @ 08:27:56 End 2025.10.01 @ 08:43:38 Sessions 1 Manual Loads 0 Difficulty Rogue Special Mode None Game No. 79 Rogue 79 Adventurer 0 Explorer 0 Win Type - Total 0 Types 0/0/0/0/0/0/0/0/0/0 Lore% 20 Gallery% 35 Achievement% 30 Wizard Run 0 Options --------- Layout 1 ASCII 0 Keyboard 1 Movement Numpad Keybinds 0 Fullscreen 1 Font 32/SmallcapsGlow Map View 77x35 Zoom Use 0% Tactical HUD 1 Map Filters NONE Filters NONE Steam 1 RUN: 6071e5db-328b-44f0-8c56-76023bd43397